bitfinex/quotes_BTCUSD_20250108
["timestamp","ask_amount","ask_price","bid_price","bid_amount"]
[1736305857794,0.09701716,96629.0,96628.0,0.09903441]
[1736305858210,0.09801716,96629.0,96628.0,0.002]
[1736305858415,0.09801716,96629.0,96614.0,0.09252197]
[1736305858735,0.09701716,96629.0,96628.0,0.002]
[1736305859064,0.09801716,96629.0,96628.0,0.002]
[1736305859424,0.09701716,96629.0,96628.0,0.002]
[1736305860961,0.09701716,96629.0,96628.0,0.004]
[1736305860962,0.43091716,96629.0,96628.0,0.004]
[1736305861115,0.43091716,96629.0,96627.0,0.1]
[1736305861116,0.456979,96628.0,96627.0,0.1]
[1736305861310,0.67603057,96628.0,96627.0,0.1]
[1736305862694,0.58199616,96628.0,96627.0,0.1]
[1736305863327,0.64675616,96628.0,96627.0,0.1]
[1736305863465,0.45899616,96628.0,96627.0,0.1]
[1736305863840,0.10201716,96628.0,96627.0,0.1]
[1736305864050,0.10401716,96628.0,96627.0,0.101]
[1736305864257,0.19701716,96628.0,96627.0,0.1]
[1736305864476,0.20101716,96628.0,96627.0,0.1]
[1736305864677,0.20901716,96628.0,96627.0,0.101]
[1736305864810,0.19701716,96628.0,96627.0,0.1]
[1736305865187,0.20101716,96628.0,96627.0,0.1]
[1736305865417,0.22401716,96628.0,96627.0,0.1]
[1736305865665,0.22001716,96628.0,96627.0,0.1]
[1736305865842,0.37001716,96628.0,96627.0,0.1]
[1736305866046,0.37901716,96628.0,96627.0,0.101]
[1736305866602,0.37901716,96628.0,96627.0,0.1]
[1736305866603,0.37201716,96628.0,96627.0,0.1]
[1736305866861,0.37701716,96628.0,96627.0,0.101]
[1736305867104,0.37701716,96628.0,96627.0,0.1]
[1736305867347,0.37501716,96628.0,96627.0,0.1]
[1736305867538,0.38201716,96628.0,96627.0,0.1]
[1736305867694,0.38501716,96628.0,96627.0,0.1]
[1736305868221,0.38201716,96628.0,96627.0,0.1]
[1736305868413,0.38601716,96628.0,96627.0,0.1]
[1736305868617,0.36301716,96628.0,96627.0,0.11]
[1736305868962,0.21301716,96628.0,96627.0,0.1]
[1736305869248,0.20101716,96628.0,96627.0,0.1]
[1736305869541,0.20801716,96628.0,96627.0,0.101]
[1736305869743,0.20801716,96628.0,96627.0,0.1]
[1736305869951,0.23101716,96628.0,96627.0,0.1]
[1736305870153,0.38801716,96628.0,96627.0,0.101]
[1736305870394,0.60165157,96628.0,96627.0,0.1]
[1736305870601,0.60658237,96628.0,96627.0,0.1]
[1736305870814,0.61258237,96628.0,96627.0,0.101]
[1736305871151,0.70658237,96628.0,96627.0,0.079302]
[1736305871355,0.557,96618.0,96617.0,0.00023852]
[1736305871553,0.77605157,96618.0,96617.0,0.00023852]
[1736305872024,0.57701716,96618.0,96617.0,0.00023852]
[1736305872203,0.64177716,96618.0,96617.0,0.00023852]
[1736305873291,0.64677716,96618.0,96617.0,0.00023852]
[1736305873564,0.64177716,96618.0,96617.0,0.00023852]
[1736305873793,0.74581157,96618.0,96617.0,0.00023852]
[1736305873988,0.74581157,96618.0,96592.0,0.01016905]
[1736305873989,0.536054,96593.0,96592.0,0.01016905]
[1736305874112,0.536054,96593.0,96589.0,8.54e-05]
[1736305874113,0.1,96590.0,96589.0,8.54e-05]
[1736305874314,0.37001716,96590.0,96589.0,0.09260737]
[1736305874518,0.46905157,96590.0,96589.0,0.09260737]
[1736305874715,0.53381157,96590.0,96589.0,0.09260737]
[1736305874917,0.46905157,96590.0,96589.0,0.09260737]
[1736305875318,0.37001716,96590.0,96589.0,8.54e-05]
[1736305875525,0.34701716,96590.0,96589.0,8.54e-05]
[1736305875726,0.35101716,96590.0,96589.0,8.54e-05]
[1736305876589,0.10101716,96590.0,96589.0,8.54e-05]
[1736305876798,0.10101716,96590.0,96589.0,0.09911981]
[1736305876945,0.10101716,96590.0,96589.0,0.12974803]
[1736305877347,0.10201716,96590.0,96589.0,0.21274803]
[1736305877573,0.10601716,96590.0,96589.0,0.21274803]
[1736305878024,0.10101716,96590.0,96589.0,0.21274803]
[1736305878224,0.06906926,96590.0,96589.0,0.35804803]
[1736305878432,0.284865,96635.0,96613.0,0.207009]
[1736305878433,0.1,96629.0,96613.0,0.207009]
[1736305878612,0.1,96618.0,96614.0,0.12077018]
[1736305878816,0.20713603,96627.0,96614.0,0.09903441]
[1736305879234,0.1,96618.0,96614.0,0.09903441]
[1736305879443,0.15,96626.0,96614.0,0.09903441]
[1736305879687,0.1,96619.0,96614.0,0.19172139]
[1736305879891,0.001,96618.0,96614.0,0.19172139]
[1736305880065,0.001,96618.0,96615.0,0.03307519]
[1736305880270,0.001,96618.0,96616.0,0.09903441]
[1736305880743,0.1,96619.0,96616.0,0.09903441]
[1736305880951,0.001,96619.0,96616.0,0.30603841]
[1736305881158,0.001,96619.0,96618.0,0.207]
[1736305881369,0.001,96619.0,96618.0,0.30603441]
[1736305882715,0.00015303,96627.0,96626.0,0.206983]
[1736305882944,0.00015303,96627.0,96626.0,0.30601741]
[1736305884419,0.00115303,96627.0,96626.0,0.40071903]
[1736305884679,0.00115303,96627.0,96626.0,0.4919363]
[1736305885480,0.00115303,96627.0,96626.0,0.39923468]
[1736305885830,0.00115303,96627.0,96626.0,0.40423468]
[1736305886040,0.00015303,96627.0,96626.0,0.39923468]
[1736305886421,0.00015303,96627.0,96626.0,0.40423468]
[1736305886625,0.00015303,96627.0,96626.0,0.39923468]
[1736305887047,0.00015303,96627.0,96626.0,0.50423468]
[1736305887254,0.00015303,96627.0,96626.0,0.57753468]
[1736305887458,0.00015303,96627.0,96626.0,0.58769144]
[1736305887685,0.00015303,96627.0,96626.0,0.59269144]
[1736305888100,0.00015303,96627.0,96626.0,0.93470743]
[1736305888305,0.0652,96654.0,96644.0,0.206944]
[1736305888553,0.1,96652.0,96645.0,0.14042411]
[1736305888690,0.1,96652.0,96645.0,0.09903441]
[1736305888891,0.413861,96651.0,96645.0,0.09903441]
[1736305889332,0.413861,96651.0,96648.0,0.13895644]
[1736305889520,0.413861,96651.0,96649.0,0.08978418]
[1736305889732,0.1,96649.0,96648.0,0.13895644]
[1736305890049,0.1,96649.0,96626.0,0.50664085]
[1736305890050,0.306955,96639.0,96638.0,0.09264642]
[1736305890390,0.368155,96639.0,96638.0,0.09264642]
[1736305890632,0.368155,96639.0,96638.0,0.08764642]
[1736305890837,0.368155,96639.0,96627.0,0.08764642]
[1736305891097,0.368155,96639.0,96628.0,0.17024255]
[1736305891219,0.1,96638.0,96628.0,0.17024255]
[1736305891626,0.20696,96637.0,96628.0,0.17024255]
[1736305893128,0.1,96646.0,96629.0,0.00103479]
[1736305893335,0.0001708,96667.0,96629.0,0.00103479]
[1736305893336,0.1,96658.0,96650.0,0.20693]
[1736305893491,0.1,96658.0,96634.0,0.09903441]
[1736305893492,0.1,96655.0,96651.0,0.09903441]
[1736305893916,0.206899,96666.0,96651.0,0.09903441]
[1736305893917,0.15,96665.0,96651.0,0.09903441]
[1736305894183,0.15,96662.0,96652.0,0.03059684]
[1736305894383,0.15,96662.0,96653.0,0.09903441]
[1736305894952,0.0001708,96667.0,96653.0,0.09903441]
[1736305895150,0.0001708,96667.0,96654.0,0.00103453]
[1736305895408,0.0001708,96667.0,96661.0,0.206906]
[1736305895609,0.0001708,96667.0,96663.0,0.206904]
[1736305895808,0.0001708,96667.0,96663.0,0.30593841]
[1736305896235,0.0782,96701.0,96663.0,0.30593841]
[1736305896236,0.1,96706.0,96664.0,0.195]
[1736305896438,0.0001708,96725.0,96711.0,0.1]
[1736305896644,0.0001708,96725.0,96704.0,0.0703]
[1736305896645,0.0001708,96725.0,96723.0,0.206776]
[1736305896863,0.00068146,96724.0,96723.0,0.43323524]
[1736305897089,0.00068146,96724.0,96723.0,0.36803524]
[1736305897470,0.00068146,96724.0,96723.0,0.53226965]
[1736305897686,0.00068146,96724.0,96723.0,0.87364223]
[1736305898274,0.0001708,96748.0,96731.0,0.1]
[1736305898472,0.0001708,96748.0,96736.0,0.30578241]
[1736305898842,0.00032399,96737.0,96736.0,0.30578241]
[1736305899636,0.00032399,96737.0,96736.0,0.64715499]
[1736305899981,0.000171,96758.0,96743.0,0.206732]
[1736305900187,0.000171,96758.0,96744.0,0.10006791]
[1736305901016,0.000171,96758.0,96753.0,0.1838198]
[1736305901796,0.000171,96758.0,96754.0,0.52519238]
[1736305901993,0.150171,96755.0,96754.0,0.52519238]
[1736305902217,0.173171,96755.0,96754.0,0.52519238]
[1736305902462,0.302671,96755.0,96754.0,0.34137258]
[1736305902636,0.46686541,96755.0,96754.0,0.34137258]
[1736305903347,0.206756,96732.0,96731.0,0.09175788]
[1736305903663,0.229756,96732.0,96731.0,0.09175788]
[1736305903914,0.023,96731.0,96725.0,0.09175788]
[1736305904049,0.206764,96729.0,96725.0,0.09175788]
[1736305904629,0.229766,96728.0,96724.0,0.00015319]
[1736305904833,0.22951767,96728.0,96724.0,0.01393219]
[1736305905015,0.22951767,96728.0,96725.0,0.004]
[1736305905562,0.206755,96733.0,96725.0,0.004]
[1736305905780,0.206755,96733.0,96726.0,0.00959111]
[1736305906464,0.206755,96733.0,96725.0,0.004]
[1736305906625,0.206766,96728.0,96725.0,0.004]
[1736305906832,0.206766,96728.0,96724.0,0.00015319]
[1736305907030,0.413532,96728.0,96724.0,0.00015319]
[1736305907233,0.206766,96728.0,96725.0,0.004]
[1736305907400,0.413532,96728.0,96724.0,0.00015319]
[1736305908047,0.206766,96728.0,96725.0,0.004]
[1736305908291,0.413532,96728.0,96724.0,0.00015319]
[1736305908659,0.173,96739.0,96724.0,0.00415319]
[1736305908991,0.206766,96728.0,96724.0,0.00015319]
[1736305909304,0.413532,96728.0,96724.0,0.00015319]
[1736305910236,0.413532,96728.0,96725.0,0.004]
[1736305910237,0.206766,96728.0,96725.0,0.004]
[1736305910463,0.413532,96728.0,96724.0,0.00015319]
[1736305910818,0.413532,96728.0,96724.0,0.00415319]
[1736305911022,0.206744,96738.0,96724.0,0.00415319]
[1736305911234,0.15,96749.0,96724.0,0.00015319]
[1736305911436,0.15,96729.0,96725.0,0.004]
[1736305911643,0.15,96729.0,96724.0,0.00015319]
[1736305911980,0.206765,96728.0,96724.0,0.00415319]
[1736305912196,0.413531,96728.0,96724.0,0.00415319]
[1736305912402,0.15,96729.0,96724.0,0.00415319]
[1736305912616,0.413531,96728.0,96724.0,0.00415319]
[1736305913223,0.413531,96728.0,96724.0,0.00015319]
[1736305913427,0.413531,96728.0,96725.0,0.004]
[1736305913842,0.413531,96728.0,96724.0,0.00015319]
[1736305914107,0.413531,96728.0,96724.0,0.00415319]
[1736305914540,0.413531,96728.0,96724.0,0.00015319]
[1736305914741,0.413531,96728.0,96725.0,0.004]
[1736305915117,0.413531,96728.0,96724.0,0.00015319]
[1736305915571,0.15,96733.0,96724.0,0.00015319]
[1736305916446,0.15,96733.0,96724.0,0.00415319]
[1736305916657,0.15,96729.0,96724.0,0.00015319]
[1736305916867,0.15,96729.0,96724.0,0.00415319]
[1736305916868,0.15,96727.0,96724.0,0.00415319]
[1736305917050,0.08,96726.0,96724.0,0.00415319]
[1736305917206,0.15,96725.0,96724.0,0.00415319]
[1736305917616,0.15,96725.0,96724.0,0.00015319]
[1736305918020,0.15,96725.0,96724.0,0.00415319]
[1736305918269,0.370369,96725.0,96724.0,0.00415319]
[1736305918532,0.60655641,96725.0,96724.0,1.9e-07]
[1736305918723,0.356827,96699.0,96698.0,0.09175788]
[1736305918932,0.939877,96699.0,96698.0,0.09175788]
[1736305919080,0.20685,96689.0,96685.0,8.53e-05]
[1736305919287,0.72378,96689.0,96686.0,0.00918432]
[1736305920359,0.93063,96689.0,96685.0,0.0040853]
[1736305920555,0.72378,96689.0,96686.0,0.00051086]
[1736305920972,0.72378,96689.0,96686.0,0.00451086]
[1736305921176,0.72378,96689.0,96686.0,0.00051086]
[1736305922138,0.51693,96689.0,96686.0,0.00051086]
[1736305922543,0.43924573,96689.0,96686.0,0.00051086]
[1736305923099,0.43924573,96689.0,96686.0,0.00351086]
[1736305923711,0.08285982,96689.0,96687.0,0.0095354]
[1736305923910,0.08285982,96689.0,96687.0,0.10856981]
[1736305924688,0.08285982,96689.0,96688.0,0.23451914]
[1736305925015,0.08285982,96689.0,96688.0,0.41729378]
[1736305925816,0.08285982,96689.0,96688.0,0.42797973]
[1736305926013,0.08285982,96689.0,96688.0,0.50647285]
[1736305926219,0.08285982,96689.0,96688.0,0.87819431]
[1736305926808,0.08285982,96689.0,96688.0,0.98119431]
[1736305927309,0.08285982,96689.0,96688.0,0.97819431]
[1736305927506,0.206777,96723.0,96706.0,0.20681]
[1736305927750,0.206787,96718.0,96707.0,0.12074928]
[1736305927914,0.206777,96723.0,96707.0,0.09903441]
[1736305928116,0.206787,96718.0,96707.0,0.09903441]
[1736305928354,0.1,96744.0,96708.0,0.00667443]
[1736305928355,0.206803,96711.0,96708.0,0.00667443]
[1736305928512,0.206803,96711.0,96709.0,0.01057088]
[1736305929141,0.206803,96711.0,96710.0,0.01024379]
[1736305929786,0.206803,96711.0,96701.0,0.09211518]
[1736305929985,0.206803,96711.0,96697.0,0.09211518]
[1736305929986,0.20682,96702.0,96697.0,0.09211518]
[1736305930191,0.20682,96702.0,96698.0,0.0230288]
[1736305930563,0.206813,96706.0,96698.0,0.03997756]
[1736305930798,0.206797,96714.0,96699.0,0.09903441]
[1736305930799,0.206808,96708.0,96699.0,0.09903441]
[1736305931252,0.206797,96714.0,96701.0,0.002]
[1736305931398,0.206797,96714.0,96701.0,0.09903441]
[1736305931598,0.206797,96714.0,96702.0,0.09880184]
[1736305931852,0.413593,96714.0,96703.0,0.12159216]
[1736305932026,0.206812,96707.0,96703.0,0.12159216]
[1736305932227,0.206812,96707.0,96703.0,0.13185426]
[1736305932542,0.206797,96713.0,96704.0,0.03341463]
[1736305932746,0.206797,96713.0,96705.0,0.09903441]
[1736305933077,0.206797,96713.0,96705.0,0.12576238]
[1736305933271,0.023,96730.0,96705.0,0.12576238]
[1736305933509,0.206803,96710.0,96706.0,0.03186335]
[1736305933710,0.206803,96710.0,96706.0,0.04212545]
[1736305933945,0.413607,96710.0,96706.0,0.03543879]
[1736305934361,0.413607,96710.0,96707.0,0.0102621]
[1736305934568,0.206803,96710.0,96708.0,0.01378161]
[1736305934779,0.206796,96714.0,96708.0,0.01378161]
[1736305934780,0.206796,96714.0,96708.0,0.0102621]
[1736305934986,0.06612,96731.0,96709.0,0.09903441]
[1736305935204,0.1,96748.0,96710.0,0.00103394]
[1736305935406,0.206766,96728.0,96711.0,0.11006746]
[1736305935619,0.206766,96728.0,96711.0,0.11110133]
[1736305935826,0.3,96753.0,96711.0,0.11110133]
[1736305935827,0.20676,96731.0,96712.0,0.00774289]
[1736305936048,0.20676,96731.0,96713.0,0.11184166]
[1736305936261,0.20676,96731.0,96714.0,0.00103379]
[1736305936464,0.20676,96731.0,96715.0,0.1000682]
[1736305936883,0.20676,96731.0,96716.0,0.00670902]
[1736305937094,0.20676,96731.0,96717.0,0.13846846]
[1736305937330,0.206773,96725.0,96717.0,0.13846846]
[1736305937508,0.023,96742.0,96718.0,0.00670902]
[1736305937893,0.206783,96720.0,96718.0,0.00670902]
[1736305938096,0.20693596,96720.0,96718.0,0.00670902]
[1736305938294,0.20693596,96720.0,96719.0,0.0102621]
[1736305938658,0.20693596,96720.0,96717.0,0.002]
[1736305938868,0.20693596,96720.0,96718.0,0.01179555]
[1736305939069,0.20693596,96720.0,96717.0,0.002]
[1736305939474,0.20693596,96720.0,96714.0,0.09211518]
[1736305939677,0.20693596,96720.0,96715.0,0.09903441]
[1736305939881,0.20693596,96720.0,96718.0,0.002]
[1736305940087,0.20693596,96720.0,96716.0,0.01028338]
[1736305940352,0.20693596,96720.0,96717.0,0.0363446]
[1736305940524,0.20693596,96720.0,96717.0,0.0383446]
[1736305940721,0.20693596,96720.0,96717.0,0.0363446]
[1736305941714,0.20693596,96720.0,96713.0,0.01280725]
[1736305941715,0.206786,96719.0,96718.0,0.002]
[1736305942822,0.206786,96719.0,96717.0,0.09211518]
[1736305943035,0.00015296,96720.0,96718.0,0.09903441]
[1736305943252,0.00015296,96720.0,96718.0,0.12316651]
[1736305943684,0.00015296,96720.0,96718.0,0.12516651]
[1736305943893,0.00015296,96720.0,96718.0,0.10103441]
[1736305944118,0.00015296,96720.0,96718.0,0.09903441]
[1736305944339,0.00015296,96720.0,96719.0,0.34211324]
[1736305944550,0.20677,96726.0,96719.0,0.44114765]
[1736305944758,0.20677,96726.0,96720.0,0.16637797]
[1736305944988,0.0493,96745.0,96721.0,0.20678]
[1736305945191,0.0469,96760.0,96722.0,0.09903441]
[1736305945392,0.206732,96744.0,96729.0,0.206762]
[1736305945624,0.206732,96744.0,96730.0,0.10006808]
[1736305946178,0.206743,96739.0,96730.0,0.10006808]
[1736305946399,0.206743,96739.0,96737.0,0.09271179]
[1736305946787,0.206732,96744.0,96737.0,0.09271179]
[1736305946982,0.206732,96744.0,96738.0,0.04171635]
[1736305947232,0.206718,96750.0,96739.0,0.09903441]
[1736305947431,0.00015304,96752.0,96739.0,0.09903441]
[1736305947608,0.206729,96745.0,96739.0,0.09903441]
[1736305948093,0.206729,96745.0,96744.0,0.13913339]
[1736305948294,0.206729,96745.0,96744.0,0.21570159]
[1736305949024,0.206729,96745.0,96744.0,0.41868144]
[1736305949633,0.206729,96745.0,96744.0,0.0765682]
[1736305949839,0.206729,96745.0,96742.0,0.13914324]
[1736305950059,0.206729,96745.0,96743.0,0.09903441]
[1736305950264,0.206729,96745.0,96744.0,0.001]
[1736305950501,0.56346,96745.0,96741.0,0.13914324]
[1736305950700,0.356729,96745.0,96744.0,0.001]
[1736305950859,0.379729,96745.0,96744.0,0.001]
[1736305951078,0.524429,96745.0,96744.0,0.001]
[1736305952153,0.356754,96733.0,96732.0,0.09274533]
[1736305952570,0.206786,96718.0,96717.0,0.09274533]
[1736305953663,0.206799,96712.0,96708.0,0.09274533]
[1736305953896,0.206799,96712.0,96708.0,0.1922906]
[1736305954079,0.206799,96712.0,96708.0,0.21475981]
[1736305954407,0.206788,96717.0,96708.0,0.21475981]
[1736305954579,0.206788,96717.0,96708.0,0.12201448]
[1736305954904,0.206782,96721.0,96709.0,0.09903441]
[1736305955106,0.206782,96721.0,96710.0,0.04226038]
[1736305955230,0.206782,96721.0,96711.0,0.09903441]
[1736305955641,0.206782,96721.0,96717.0,0.002]
[1736305956037,0.206782,96721.0,96710.0,0.04329431]
[1736305956038,0.206769,96727.0,96718.0,0.09903441]
[1736305956247,0.413538,96727.0,96719.0,0.03068673]
[1736305956567,0.413538,96727.0,96718.0,0.09903441]
[1736305956568,0.206769,96727.0,96718.0,0.09903441]
[1736305957538,0.20678,96722.0,96719.0,0.002]
[1736305958758,0.20678,96722.0,96718.0,0.09903441]
[1736305958957,0.41356,96722.0,96718.0,0.09903441]
[1736305959475,0.41356,96722.0,96718.0,0.10103441]
[1736305959878,0.41356,96722.0,96718.0,0.09903441]
[1736305960275,0.20678,96722.0,96718.0,0.10103441]
[1736305960502,0.20677,96726.0,96718.0,0.10103441]
[1736305960711,0.41354,96726.0,96718.0,0.10103441]
[1736305961040,0.15,96730.0,96718.0,0.10103441]
[1736305961422,0.15,96728.0,96718.0,0.10103441]
[1736305961596,0.15,96728.0,96719.0,0.03078334]
[1736305961796,0.206767,96727.0,96720.0,0.09903441]
[1736305962027,0.15,96728.0,96720.0,0.09903441]
[1736305962233,0.206759,96731.0,96720.0,0.09903441]
[1736305962378,0.15,96728.0,96721.0,0.03396386]
[1736305962580,0.15,96728.0,96722.0,0.09903441]
[1736305963044,0.206756,96732.0,96722.0,0.09903441]
[1736305963570,0.206761,96730.0,96722.0,0.09903441]
[1736305964373,0.206735,96743.0,96722.0,0.09903441]
[1736305964374,0.206748,96736.0,96722.0,0.09903441]
[1736305964582,0.206735,96743.0,96723.0,0.04427207]
[1736305964813,0.206735,96743.0,96724.0,0.09903441]
[1736305965022,0.206735,96743.0,96729.0,0.206762]
[1736305965236,0.206717,96751.0,96725.0,0.02665264]
[1736305965237,0.206728,96746.0,96730.0,0.10006807]
[1736305965654,0.0001706,96753.0,96730.0,0.10006807]
[1736305965860,0.0001706,96753.0,96725.0,0.02561898]
[1736305965861,0.0001706,96753.0,96732.0,0.09903441]
[1736305966068,0.0001706,96753.0,96744.0,0.206729]
[1736305966276,0.0001706,96753.0,96733.0,0.2077875]
[1736305966277,0.0001706,96753.0,96745.0,0.10006792]
[1736305967147,0.0001706,96753.0,96745.0,0.30679492]
[1736305967353,0.00032364,96753.0,96745.0,0.30679492]
[1736305967560,0.00032364,96753.0,96747.0,0.206724]
[1736305967767,0.00032364,96753.0,96748.0,0.10006787]
[1736305968942,0.00032364,96753.0,96748.0,0.09903441]
[1736305969158,0.00032364,96753.0,96748.0,0.10003441]
[1736305969771,0.00032364,96753.0,96748.0,0.09903441]
[1736305969972,0.00032364,96753.0,96749.0,0.02431228]
[1736305970180,0.00032364,96753.0,96750.0,0.09903441]
[1736305972024,0.00032364,96753.0,96750.0,0.10003441]
[1736305974840,0.00032364,96753.0,96750.0,0.09903441]
[1736305975219,0.00032364,96753.0,96750.0,0.10003441]
[1736305975397,0.00032364,96753.0,96751.0,0.03834594]
[1736305975604,0.00032364,96753.0,96752.0,0.30574841]
[1736305976546,0.00032364,96753.0,96752.0,0.09903441]
[1736305976774,0.00032364,96753.0,96752.0,0.10003441]
[1736305977353,0.00032364,96753.0,96752.0,0.001]
[1736305977784,0.22942364,96753.0,96752.0,0.001]
[1736305977986,0.22942364,96753.0,96731.0,0.01256871]
[1736305978213,0.023,96752.0,96730.0,0.09273505]
[1736305978411,0.206752,96734.0,96730.0,0.09273505]
[1736305978788,0.15,96731.0,96730.0,0.09273505]
[1736305979429,0.15,96731.0,96710.0,0.27820517]
[1736305979430,0.206761,96730.0,96720.0,0.09273505]
[1736305979622,0.206761,96730.0,96721.0,0.09903441]
[1736305979894,0.15,96731.0,96721.0,0.09903441]
[1736305980063,0.206761,96730.0,96721.0,0.09903441]
[1736305980206,0.15,96731.0,96721.0,0.09903441]
[1736305980987,0.413522,96730.0,96721.0,0.09903441]
[1736305981508,0.413522,96730.0,96722.0,0.01928033]
[1736305981715,0.206761,96730.0,96723.0,0.09903441]
[1736305981923,0.15,96736.0,96723.0,0.09903441]
[1736305982125,0.15,96734.0,96723.0,0.09903441]
[1736305982327,0.206742,96739.0,96724.0,0.00103378]
[1736305982533,0.206742,96739.0,96725.0,0.10006813]
[1736305982741,0.206746,96737.0,96725.0,0.10006813]
[1736305982940,0.413492,96737.0,96725.0,0.10006813]
[1736305983191,0.206746,96737.0,96726.0,0.03472344]
[1736305983402,0.206738,96741.0,96727.0,0.10006813]
[1736305983605,0.206738,96741.0,96727.0,0.10006808]
[1736305983811,0.206732,96744.0,96728.0,0.25536676]
[1736305983981,0.206732,96744.0,96729.0,0.09903441]
[1736305984224,0.206743,96739.0,96730.0,0.00103364]
[1736305984433,0.25896,96756.0,96732.0,0.09274756]
[1736305984434,0.023,96752.0,96732.0,0.09274756]
[1736305984639,0.206753,96734.0,96732.0,0.19178197]
[1736305985391,0.206753,96734.0,96732.0,0.09903441]
[1736305985811,0.206753,96734.0,96732.0,0.10003441]
[1736305986145,0.206748,96737.0,96733.0,0.02275054]
[1736305986349,0.206724,96748.0,96733.0,0.12178495]
[1736305986549,0.206724,96748.0,96734.0,0.00103361]
[1736305986784,0.206724,96748.0,96735.0,0.10006802]
[1736305987977,0.206724,96748.0,96735.0,0.10106802]
[1736305988200,0.206717,96751.0,96736.0,0.01027732]
[1736305988409,0.206717,96751.0,96737.0,0.14105326]
[1736305988612,0.206717,96751.0,96737.0,0.23380082]
[1736305989033,0.206717,96751.0,96741.0,0.09274756]
[1736305989241,0.206717,96751.0,96742.0,0.09903441]
[1736305990617,0.206717,96751.0,96743.0,0.01028307]
[1736305990826,0.206717,96751.0,96744.0,0.13735493]
[1736305991046,0.206728,96746.0,96744.0,0.13735493]
[1736305991249,0.206728,96746.0,96745.0,0.01028307]
[1736305991453,0.206728,96746.0,96745.0,0.10931748]
[1736305991660,0.206728,96746.0,96745.0,0.09903441]
[1736305992106,0.206728,96746.0,96739.0,0.09274756]
[1736305992301,0.413456,96746.0,96740.0,0.09903441]
[1736305992509,0.413456,96746.0,96740.0,0.10932121]
[1736305993067,0.413456,96746.0,96740.0,0.0102868]
[1736305993476,0.206743,96739.0,96736.0,0.09274756]
[1736305994259,0.206743,96739.0,96723.0,0.206775]
[1736305994260,0.206743,96739.0,96730.0,0.09274756]
[1736305994503,0.206743,96739.0,96731.0,0.09903441]
[1736305994705,0.206743,96739.0,96736.0,0.001]
[1736305994909,0.206743,96739.0,96731.0,0.09903441]
[1736305995321,0.206743,96739.0,96736.0,0.09374756]
[1736305995934,0.206743,96739.0,96737.0,0.01029109]
[1736305996345,0.206729,96745.0,96737.0,0.01029109]
[1736305996555,0.206723,96748.0,96738.0,0.1093255]
[1736305996738,0.20703664,96753.0,96738.0,0.1093255]
[1736305996978,0.20703664,96753.0,96739.0,0.01132466]
[1736305997181,0.20703664,96753.0,96740.0,0.09903441]
[1736305997393,0.00032364,96753.0,96746.0,0.206726]
[1736305997667,0.00032364,96753.0,96741.0,0.2077705]
[1736305997668,0.00032364,96753.0,96752.0,0.206714]
[1736305997901,0.00032364,96753.0,96752.0,0.30574841]
[1736305998146,0.0001706,96762.0,96752.0,0.51246241]
[1736305998323,0.0001706,96762.0,96754.0,0.206709]
[1736305998529,0.0001706,96762.0,96756.0,0.206705]
[1736305998734,0.0001706,96762.0,96757.0,0.16158774]
[1736305998978,0.0001706,96762.0,96757.0,0.20891929]
[1736305999214,0.0001706,96762.0,96757.0,0.20788596]
[1736305999333,0.0001706,96762.0,96757.0,1.00904707]
[1736305999562,0.0001706,96762.0,96757.0,1.10808148]
[1736306000800,0.0001706,96762.0,96757.0,1.10908148]
[1736306000999,0.0001706,96762.0,96757.0,1.10808148]
[1736306001224,0.0001706,96762.0,96757.0,1.08132511]
[1736306001437,0.0001706,96762.0,96757.0,1.12962058]
[1736306001637,0.0001706,96762.0,96757.0,1.06810058]
[1736306001924,0.0001706,96762.0,96757.0,1.03058617]
[1736306003118,0.0001706,96762.0,96757.0,0.96906617]
[1736306003319,0.0001706,96762.0,96757.0,1.00902186]
[1736306003744,0.0001706,96762.0,96757.0,1.01002186]
[1736306003969,0.0001706,96762.0,96757.0,1.00902186]
[1736306004169,0.0001706,96762.0,96757.0,1.10905627]
[1736306004583,0.0001706,96762.0,96757.0,1.32463527]
[1736306004813,0.0001706,96762.0,96757.0,1.38715527]
[1736306005592,0.0001706,96762.0,96757.0,1.40770191]
[1736306006394,0.0001706,96762.0,96757.0,1.40670191]
[1736306006591,0.0001706,96762.0,96757.0,1.40770191]
[1736306007207,0.0001706,96762.0,96757.0,1.40670191]
[1736306007413,0.206699,96759.0,96757.0,1.2461475]
[1736306007615,0.0001706,96762.0,96757.0,1.3086675]
[1736306008255,0.0001706,96762.0,96757.0,1.28812086]
[1736306008461,0.0001706,96762.0,96757.0,1.22660086]
[1736306008665,0.0001706,96762.0,96757.0,1.28812086]
[1736306008841,0.0001706,96762.0,96757.0,0.62973975]
[1736306009241,0.0001706,96762.0,96757.0,0.53070534]
[1736306009823,0.206698,96760.0,96757.0,0.53070534]
[1736306010029,0.206698,96760.0,96757.0,0.52970534]
[1736306010225,0.0001706,96762.0,96757.0,0.53070534]
[1736306010432,0.0001706,96762.0,96757.0,0.52970534]
[1736306010932,0.0001706,96762.0,96757.0,0.53070534]
[1736306011330,0.0001706,96762.0,96757.0,0.81828877]
[1736306011600,0.0001706,96762.0,96757.0,0.81728877]
[1736306011798,0.0001706,96762.0,96757.0,1.29665405]
[1736306012011,0.0001706,96762.0,96757.0,1.34238753]
[1736306012818,0.000171,96765.0,96762.0,0.20669]
[1736306013015,0.000171,96765.0,96764.0,0.206688]
[1736306013232,0.000171,96765.0,96764.0,0.30572241]
[1736306013433,0.0001708,96769.0,96764.0,0.30572241]
[1736306013434,0.15,96778.0,96774.0,0.206667]
[1736306013603,0.15,96778.0,96775.0,0.09903441]
[1736306013802,0.0001706,96783.0,96775.0,0.09903441]
[1736306014002,0.0001706,96783.0,96777.0,0.20666]
[1736306014003,0.00032362,96783.0,96777.0,0.20666]
[1736306014361,0.00032362,96783.0,96781.0,0.206651]
[1736306014561,0.00032362,96783.0,96782.0,0.09903441]
[1736306014771,0.00032362,96783.0,96782.0,0.14457316]
[1736306014975,0.00032362,96783.0,96782.0,0.47001342]
[1736306015169,0.00032362,96783.0,96782.0,1.01226008]
[1736306016268,0.00032362,96783.0,96782.0,1.07378008]
[1736306016687,0.00032362,96783.0,96782.0,1.35169793]
[1736306017323,0.00032362,96783.0,96782.0,1.29117793]
[1736306017571,0.00032362,96783.0,96782.0,1.35269793]